Cogmind - Beta 16 @@@ ROGUE MODE // 2026.01.09 @ 23:15:30 Player: Decinym Result: Destroyed by G-67 Veteran with Field Laser Performance ------------- Evolutions (6) 3000 Regions Visited (24) 4800 Robots Destroyed (273) 1365 Value Destroyed (15572) 15572 Prototype IDs (15) 300 Alien Tech Used (0) 0 Bonus (10468) 10468 TOTAL SCORE: 35505 Bonus ------- High Alert Combat Kills 1520 Follower Combat Kills 2971 Entered Garrisons 1600 Used RIF Installer 4500 Friendly Fire -123 Cogmind --------- Core Integrity 0/1150 Matter 250/300 Energy 24/100 System Corruption 17% Temperature Cool (32) Movement Flying (37) Location -4/Upper Caves Parts ------- > --- POWER (2) -------- (None) > --- PROPULSION (6) --- Field Propulsion Array Field Propulsion Array > --- UTILITY (9) ------ Improved Targeting Computer Makeshift Weapon Shielding Relay Coupler [Sentry] (36) Relay Coupler [Sentry] (23) Relay Coupler [Demolisher] (37) Relay Coupler [Specialist] (34) Relay Coupler [Heavy] (28) > --- WEAPON (2) ------- Improved Remote Datajack > --- INVENTORY (5) ---- Spiked Heavy Treads Spiked Heavy Treads Nova Cannon Peak State ------------ > --- POWER ------------ Reinforced Deuterium Engine Antimatter Reactor > --- PROPULSION ------- Improved Medium Treads Improved Medium Treads Heavy Siege Treads Heavy Siege Treads > --- UTILITY ---------- Experimental Heat Sink High-capacity Storage Unit Improved Light Armor Plating Layered Medium Armor Plating Advanced Force Field Relay Coupler [NC] Relay Coupler [Swarmer] Relay Coupler [Sentry] Relay Coupler [Heavy] > --- WEAPON ----------- Gamma Rifle Advanced Remote Datajack > --- INVENTORY -------- Reinforced Fission Core Experimental Heat Sink Advanced Cooling System Experimental Sensor Array Improved Core Shielding Hacking Suite Relay Coupler [NC] Relay Coupler [Sentry] Relay Coupler [Sentry] Relay Coupler [Sentry] Relay Coupler [Demolisher] Relay Coupler [Specialist] Heavy Wave Gun Nova Cannon Hypervelocity Railgun Heavy Shock Bomb Launcher Improved Remote Datajack Lance [Rating: 113] Favorites ----------- Power Reinforced Antimatter Reactor Engine Deuterium Engine Power Core Reinforced Fission Core Reactor Reinforced Antimatter Reactor Propulsion Light Treads Treads Light Treads Leg Enhanced Flexi-carbon Leg Wheel Armored Huge Wheel Flight Unit Field Propulsion Array Utility High-capacity Storage Unit Device Improved Heat Sink Storage High-capacity Storage Unit Processor Core Analyzer Hackware Relay Coupler [NC] Protection Improved Core Shielding Weapon Enhanced Autogun Energy Gun Tesla Rifle Energy Cannon Improved EM Pulse Cannon Ballistic Gun Enhanced Autogun Ballistic Cannon Light Cannon Launcher Heavy Missile Launcher Special Weapon Improved Remote Datajack Slashing Weapon Chainsword Piercing Weapon Lance Build | -11 -10 -9 -9 -8 -8 -8 -8 -7 -7 -7 -7 -6 -6 -5 -5 -5 -5 -5 -5 -4 -4 -4 -4 -4 ------- Run | Yrd Mat Mat Min Mat Gar Mat Gar Fac Was Fac Gar Fac Gar Fac Gar Fac Gar Fac Gar Fac Gar Fac Upp Upp Slots Evolved 12 | . . 2 . 2 . . . 2 . . . 2 . 2 . . . . . 2 . . . . Power 1 | . . . . . . . . 1 . . . . . . . . . . . . . . . . Propulsion 4 | . . 1 . 1 . . . . . . . . . 1 . . . . . 1 . . . . Utility 7 | . . 1 . 1 . . . 1 . . . 2 . 1 . . . . . 1 . . . . Weapon . | . . . . . . . . . . . . . . . . . . . . . . . . . Parts Attached 268 | . 5 17 1 17 16 7 10 9 2 2 33 1 13 5 31 10 17 9 18 24 9 6 3 3 Power 30 | . 1 2 . . 1 1 . 2 . . 4 1 1 1 5 1 2 . 2 5 1 . . . Engine 13 | . 1 2 . . 1 1 . 2 . . 1 1 . . 3 . . . 1 . . . . . Core 12 | . . . . . . . . . . . 3 . 1 . 2 1 1 . 1 3 . . . . Reactor 5 | . . . . . . . . . . . . . . 1 . . 1 . . 2 1 . . . Propulsion 64 | . 3 5 . 6 6 1 4 3 . . 11 . . 1 9 1 2 1 2 5 2 2 . . Treads 46 | . 3 5 . 6 6 1 4 1 . . 5 . . 1 5 . 2 1 2 4 . . . . Leg 6 | . . . . . . . . . . . . . . . 2 1 . . . 1 2 . . . Wheel 9 | . . . . . . . . 2 . . 5 . . . 2 . . . . . . . . . Hover . | . . . . . . . . . . . . . . . . . . . . . . . . . Flight 3 | . . . . . . . . . . . 1 . . . . . . . . . . 2 . . Utility 110 | . 1 2 1 5 6 1 2 4 1 2 14 . 9 1 8 4 8 5 10 12 5 3 3 3 Device 35 | . . 1 1 3 3 . . 1 . 1 3 . 2 1 3 2 1 3 1 5 . 3 1 . Storage 4 | . 1 . . 1 . . . . . . 2 . . . . . . . . . . . . . Processor 5 | . . . . . . . . 1 . . . . . . . 1 . 1 . 1 . . 1 . Hackware 39 | . . . . . . . . . 1 . 7 . 4 . 4 1 5 . 8 2 4 . . 3 Protection 27 | . . 1 . 1 3 1 2 2 . 1 2 . 3 . 1 . 2 1 1 4 1 . 1 . Artifact . | . . . . . . . . . . . . . . . . . . . . . . . . . Weapon 64 | . . 8 . 6 3 4 4 . 1 . 4 . 3 2 9 4 5 3 4 2 1 1 . . Energy Gun 23 | . . 2 . 1 . 2 2 . . . 1 . 2 2 3 . 1 . 4 2 1 . . . Energy Cannon 11 | . . . . . . . 1 . . . 2 . 1 . 2 3 2 . . . . . . . Ballistic Gun 13 | . . 3 . 4 2 2 . . . . . . . . . . . 2 . . . . . . Ballistic Cannon 5 | . . 2 . . . . . . . . . . . . 2 . 1 . . . . . . . Launcher 4 | . . 1 . 1 . . 1 . . . . . . . . . 1 . . . . . . . Special Weapon 5 | . . . . . . . . . 1 . 1 . . . . 1 . 1 . . . 1 . . Impact Weapon . | . . . . . . . . . . . . . . . . . . . . . . . . . Slashing Weapon 1 | . . . . . 1 . . . . . . . . . . . . . . . . . . . Piercing Weapon 2 | . . . . . . . . . . . . . . . 2 . . . . . . . . . Special Melee Weapon . | . . . . . . . . . . . . . . . . . . . . . . . . . Unidentified Prototypes 14 | . . 2 1 3 . 2 . . . . 1 1 . . 1 1 . 1 . 1 . . . . Corrupted Parts 12 | . . . . . . . 1 . . . 4 . 1 . . . 1 . 2 1 2 . . . System Corruption 64 | . . . . . . . 8 . . . 28 . 4 . . . 4 . 8 3 9 . . . Parts Lost 112 | . 1 1 . 2 11 3 5 2 . . 14 . 7 1 19 2 3 2 5 15 16 . 2 1 Power 13 | . . 1 . . . . . . . . 3 . . . 4 . 1 . . 2 2 . . . Propulsion 28 | . 1 . . . 4 . 3 . . . 2 . . . 6 1 . 1 2 4 4 . . . Utility 44 | . . . . 2 5 1 2 2 . . 3 . 3 . 5 1 2 1 . 6 8 . 2 1 Weapon 27 | . . . . . 2 2 . . . . 6 . 4 1 4 . . . 3 3 2 . . . Highest Loss Streak 14 | . 1 1 . 2 3 2 4 1 . . 11 . 3 1 10 1 1 1 2 7 14 . 2 3 To Critical Strikes 1 | . . . . . . . 1 . . . . . . . . . . . . . . . . . Average Backups 15 | . 8 12 14 14 13 14 13 14 14 14 16 16 14 15 17 17 18 18 19 18 14 4 4 3 Power 1 | . 1 2 1 1 1 2 2 . . . . 1 1 2 . 1 . 1 1 . . . . . Propulsion 2 | . 4 5 6 4 2 1 . . 2 3 2 2 2 1 1 2 1 1 1 . . . . . Utility 6 | . . . 1 2 2 3 3 4 5 5 9 10 8 9 8 7 8 9 9 10 10 3 3 1 Weapon 5 | . 1 4 5 7 6 6 6 7 6 6 2 2 1 1 4 6 6 6 5 5 2 1 1 1 Tool/Special . | . . . . . . . . . . . . . . . . . . . . . . . . . Unused Backups 51 | . 3 5 7 4 . 5 . . . . 3 . . . 6 2 4 1 3 2 4 . . 2 Power 6 | . . 2 1 . . 2 . . . . . . . . . . 1 . . . . . . . Propulsion 12 | . . 2 3 . . . . . . . 3 . . . 1 . . . . 1 . . . 2 Utility 12 | . 1 . . . . 1 . . . . . . . . 3 1 1 1 . . 4 . . . Weapon 16 | . 2 1 3 4 . . . . . . . . . . 2 1 1 . 1 1 . . . . Tool/Special 5 | . . . . . . 2 . . . . . . . . . . 1 . 2 . . . . . Average Slot Usage (%) 85 | . 85 81 100 98 94 98 94 77 82 79 78 85 84 86 86 87 84 81 87 83 65 16 50 45 Engine 6 | . 14 10 11 9 9 8 9 14 15 15 2 1 6 5 7 7 . . 3 3 . . . . Core 2 | . . . . . . . . . . . 11 11 6 3 2 2 5 5 1 . 4 . . . Reactor 1 | . . . . . . . . . . . . . . 1 . . 4 5 5 5 1 . . . Treads 18 | . 17 31 33 36 35 35 35 12 . . 2 13 13 17 12 14 13 14 16 18 4 . . . Leg 1 | . 10 . . . . . . . . . . . . . 1 1 2 . . . 8 . . . Wheel 1 | . . . . . . . . 7 15 15 12 . . . 2 . . . . . . . . . Device 9 | . . 1 11 18 16 18 11 8 15 15 7 13 8 9 9 3 8 8 11 8 7 1 14 1 Storage 6 | . 14 11 11 9 9 9 9 7 7 7 7 6 6 5 5 5 5 5 5 5 4 . . . Hackware 12 | . . . . . . . . . 2 2 6 13 18 17 22 26 23 21 20 17 16 10 10 17 Protection 6 | . . 4 11 7 6 9 11 8 4 4 8 12 11 11 7 9 3 3 3 9 2 . 4 5 Energy Gun 3 | . 14 3 . . . 5 14 7 7 2 2 . 2 11 4 3 2 . 6 4 2 . . . Energy Cannon 1 | . . . . . . . 2 6 3 . 2 13 9 . . 5 3 1 . . 2 . . . Ballistic Gun 4 | . 14 6 22 17 17 12 . . . . . . . . . . . 4 1 . . . . . Special Weapon 1 | . . . . . . . . . 1 7 4 . . . 2 1 2 2 2 4 . 3 5 5 Peak Build Rating 113 | . 7 17 24 31 35 36 35 54 55 55 63 72 80 88 91 101 104 107 108 113 89 56 69 67 Average Rating 64 | . 6 10 17 26 30 33 31 41 53 51 52 69 76 83 81 93 99 98 100 105 68 24 68 60 On Entrance 52 | 6 6 7 16 18 31 35 34 31 54 53 54 63 72 76 87 89 101 99 101 102 61 11 56 58 Avg Prop Armor Cover (%) 8 | . . . . . . . . 12 . . 17 . . . 15 2 1 . . 4 14 . 11 . Naked Turns . | . . . . . . . . . . . . . . . . . . . . . . . . . Heaviest Build 120 | 14 29 38 38 45 50 46 53 64 62 58 67 81 83 84 84 94 117 120 116 118 93 8 10 8 Greatest Support 210 | 20 40 63 60 80 80 83 83 80 56 56 150 150 150 170 185 173 165 165 180 210 65 30 30 30 Greatest Overweight (x) 3 | . . 1 . . 1 . . 2 1 1 2 . . . 3 . . 1 . 2 3 1 . . Average Overweight (x) . | . . . . . . . . 1 . . . . . . . . . . . . 1 . . . Largest Inventory Capacity 20 | . 15 15 15 15 15 15 15 15 15 15 20 20 20 20 20 20 20 20 20 20 20 5 5 5 Average Capacity 17 | . 12 15 15 15 15 15 15 15 15 15 19 20 20 20 20 20 20 20 20 20 19 5 5 5 Most Carried 20 | . 12 15 15 15 15 15 15 15 15 15 20 19 20 20 20 20 20 20 20 20 18 5 4 5 Average Carried 16 | . 8 12 14 14 13 14 13 14 14 14 17 18 16 16 18 19 19 19 19 18 14 4 4 3 Final Capacity 20 | 8 15 15 15 15 15 15 15 15 15 15 20 20 20 20 20 20 20 20 20 20 5 5 5 5 Final Carried 20 | 6 11 14 15 15 14 15 14 15 14 14 20 18 16 20 20 20 20 20 20 16 5 4 4 5 Class Distribution -------------------- 58% | Botlord-Mutant 22% | Scavenger-Mutant 15% | Mutant 3% | Bothacker-Mutant Dominant Class ---------------- Mutant | -10/Materials Mutant | -9/Materials Scavenger-Mutant | -9/Mines Scavenger-Mutant | -8/Materials Scavenger-Mutant | -8/Garrison Scavenger-Mutant | -8/Materials Mutant | -8/Garrison Scavenger-Mutant | -7/Factory Mutant | -7/Waste Mutant | -7/Factory Bothacker-Mutant | -7/Garrison Botlord-Mutant | -6/Factory Botlord-Mutant | -6/Garrison Botlord-Mutant | -5/Factory Botlord-Mutant | -5/Garrison Botlord-Mutant | -5/Factory Botlord-Mutant | -5/Garrison Botlord-Mutant | -5/Factory Botlord-Mutant | -5/Garrison Botlord-Mutant | -4/Factory Botlord-Mutant | -4/Garrison Botlord-Mutant | -4/Factory Botlord-Mutant | -4/Upper Caves Botlord-Mutant | -4/Upper Caves Resources | -11 -10 -9 -9 -8 -8 -8 -8 -7 -7 -7 -7 -6 -6 -5 -5 -5 -5 -5 -5 -4 -4 -4 -4 -4 ----------- Run | Yrd Mat Mat Min Mat Gar Mat Gar Fac Was Fac Gar Fac Gar Fac Gar Fac Gar Fac Gar Fac Gar Fac Upp Upp Matter Collected 8294 | 200 175 584 32 540 1051 372 176 113 . . 803 . 282 65 682 240 663 665 653 695 179 . 124 . Remotely . | . . . . . . . . . . . . . . . . . . . . . . . . . Salvage Created 14802 | . 322 644 52 791 1241 939 600 334 . . 1705 . 1023 520 1566 146 1098 1144 1293 1169 215 . . . Parts 703 | . 19 51 7 43 56 56 37 8 . . 65 . 43 6 63 8 53 47 69 62 10 . . . Haulers Intercepted 5 | . . 2 . 2 . 1 . . . . . . . . . . . . . . . . . . Recyclers Shooed 4 | . 1 1 . . . . . . . . . . . . . . . . . 2 . . . . Parts Field Recycled . | . . . . . . . . . . . . . . . . . . . . . . . . . Retrieved Matter . | . . . . . . . . . . . . . . . . . . . . . . . . . Parts Self-Destructed . | . . . . . . . . . . . . . . . . . . . . . . . . . Prevented . | . . . . . . . . . . . . . . . . . . . . . . . . . Parts Restored . | . . . . . . . . . . . . . . . . . . . . . . . . . Kills | -11 -10 -9 -9 -8 -8 -8 -8 -7 -7 -7 -7 -6 -6 -5 -5 -5 -5 -5 -5 -4 -4 -4 -4 -4 ------- Run | Yrd Mat Mat Min Mat Gar Mat Gar Fac Was Fac Gar Fac Gar Fac Gar Fac Gar Fac Gar Fac Gar Fac Upp Upp Combat Hostiles Destroyed 232 | . 7 18 . 13 25 16 16 6 . . 16 . 17 10 22 2 16 9 21 14 4 . . . Melee 11 | . . . . . . . . . . . 6 . . . 4 . . . . 1 . . . . Guns 127 | . 7 . . 13 25 14 5 2 . . 7 . 3 7 11 1 1 5 19 7 . . . . Cannons 44 | . . 14 . . . . 2 3 . . . . 9 . 4 . 10 1 . . 1 . . . AOE 35 | . . 4 . . . 2 9 . . . 3 . 2 3 2 . 4 2 . 2 2 . . . Classes Destroyed 20 | . 5 5 . 1 2 . . . . . . . 1 . 4 1 . . . 1 . . . . Worker 13 | . 1 . 1 3 . 4 . . . . . . . . . . . 3 . 1 . . . . Builder 7 | . . 2 2 . . 1 . . . . . . . . . . . . . 2 . . . . Tunneler 3 | . . 1 . . . 1 . . . . . . . . . . . 1 . . . . . . Hauler 5 | . . 2 . 2 . 1 . . . . . . . . . . . . . . . . . . Recycler 5 | . 1 1 . . . . . . . . . . . 1 . . . 1 . 1 . . . . Mechanic 1 | . . . . . . . . . . . . . . . . . . . . 1 . . . . Watcher 5 | . 1 . . . . . . . . . . . . . . . 1 3 . . . . . . Swarmer 50 | . 3 3 . . . 2 4 . . . 4 . 2 5 13 . 5 3 3 1 2 . . . Cutter 2 | . . . . . . . . . . . . . . . 2 . . . . . . . . . Grunt 90 | . 4 10 . 8 16 7 2 2 . . 6 . 7 5 2 1 5 2 8 5 . . . . Brawler 4 | . . 1 . 1 . . 1 . . . . . . . . . 1 . . . . . . . Duelist 9 | . . . . . 1 1 1 . . . 1 . 1 . 1 . . . . 1 2 . . . Protector 1 | . . . . . . . . . . . . . . . 1 . . . . . . . . . Sentry 25 | . . 4 . 2 3 4 2 2 . . 4 . 3 . 1 . . . . . . . . . Demolisher 1 | . . . . . . . . . . . . . . . 1 . . . . . . . . . Specialist 1 | . . . . . . . . . . . . . 1 . . . . . . . . . . . Hunter 17 | . . . . 2 2 2 1 . . . . . . . . . 1 1 3 5 . . . . Programmer 28 | . . . . . 3 . 4 2 . . 2 . 2 . . . 3 4 6 2 . . . . Behemoth 3 | . . . . . . . . . . . . . . . . 1 1 . 1 . . . . . Striker 1 | . . . . . . . . . . . . . . . 1 . . . . . . . . . Guerrilla 1 | . . . . . . . 1 . . . . . . . . . . . . . . . . . Infiltrator 1 | . . . . . . . . . . . . . 1 . . . . . . . . . . . Best Kill Streak 8 | . 3 6 2 5 5 7 8 2 . . 8 . 3 5 6 1 5 5 6 6 2 . . . Combat Bots Only 8 | . 3 5 . 4 5 4 8 2 . . 8 . 3 5 6 1 5 3 6 6 2 . . . Max Kills in Single Turn 5 | . 1 2 2 1 1 2 3 1 . . 2 . 2 4 2 1 2 5 2 2 2 . . . Gunslinging 1 | . . . . . . 1 . . . . . . . . . . . . 1 . . . . . Exploded 3 | . . 2 . . . 1 3 . . . 2 . 2 3 2 . 2 2 . 1 2 . . . Melee 1 | . . . . . . . . . . . 1 . . . 1 . . . . 1 . . . . Uniques/NPCs Destroyed . | . . . . . . . . . . . . . . . . . . . . . . . . . Combat | -11 -10 -9 -9 -8 -8 -8 -8 -7 -7 -7 -7 -6 -6 -5 -5 -5 -5 -5 -5 -4 -4 -4 -4 -4 -------- Run | Yrd Mat Mat Min Mat Gar Mat Gar Fac Was Fac Gar Fac Gar Fac Gar Fac Gar Fac Gar Fac Gar Fac Upp Upp Hostile Shots Fired 2318 | . 46 65 . 72 211 130 93 137 . . 258 . 161 38 205 41 103 74 201 280 161 4 20 18 Missed 639 | . 10 24 . 22 56 41 34 47 . . 63 . 46 13 46 13 27 19 44 68 43 3 13 7 Hits 1679 | . 36 41 . 50 155 89 59 90 . . 195 . 115 25 159 28 76 55 157 212 118 1 7 11 Melee 49 | . . . . . 2 3 1 . . . 10 . 6 . 19 . 1 . . . 7 . . . Projectile 1630 | . 36 41 . 50 153 86 58 90 . . 185 . 109 25 140 28 75 55 157 212 111 1 7 11 AOE 14 | . . . . . . . . . . . . . . . 12 1 . . . 1 . . . . Critical Strikes 82 | . . . . 4 11 7 11 . . . 5 . 3 2 6 1 3 4 11 12 2 . . . Actively Blocked 4 | . . . . . . . 1 . . . . . 1 . . . . . . 2 . . . . Part Disruptions 1 | . . . . . . . . . . . . . . . . . . . 1 . . . . . Damage Taken 26456 | . 377 495 . 579 2183 1242 1036 945 . . 2060 . 1838 371 2727 736 1715 1110 2346 4211 2131 23 137 194 Core 3089 | . 26 91 . 67 135 212 120 100 . . 320 . 143 20 197 38 126 107 228 242 785 23 9 100 Absorbed by Shields 3277 | . . . . 227 525 . . . . . 476 . 160 137 610 . . . 674 276 192 . . . Reduced by Siege Mode 972 | . . . . . . . . . . . . . . . . . . 38 215 719 . . . . Redirected to Shielding 529 | . . . . . 9 . 6 57 . . 39 . 63 7 65 14 . . . 183 82 . 3 1 Ignored by Resistances 95 | . . . . . . . . . . . . . . . . . 60 35 . . . . . . Regen/Repaired (Parts) 863 | . . . . 29 . 338 . . . . . . . . . . . 496 . . . . . . Core Remaining (%) 59 | 100 89 . 77 . . . 2 . . . 40 . 83 . . . . . 28 . . . . . Volleys Fired 930 | . 45 46 2 49 107 54 35 34 6 . 54 . 77 21 61 49 68 44 82 77 18 1 . . Largest 2 | . 2 2 2 2 2 2 2 2 1 . 2 . 2 2 2 2 2 2 2 2 2 1 . . Hottest 201 | . 70 60 46 50 50 90 155 155 5 . 155 . 138 149 162 178 168 162 150 163 201 7 . . Shots Fired 1540 | . 89 88 4 97 214 108 56 61 7 . 73 . 140 41 99 56 101 66 126 94 19 1 . . Gun 1026 | . 89 2 4 96 214 108 39 34 1 . 41 . 43 41 57 15 24 36 110 63 9 . . . Cannon 369 | . . 82 . . . . 14 27 . . 19 . 88 . 33 28 61 10 . 4 3 . . . Launcher 21 | . . 4 . 1 . . 3 . . . 1 . . . . . 2 2 . 4 4 . . . Special 124 | . . . . . . . . . 6 . 12 . 9 . 9 13 14 18 16 23 3 1 . . Kinetic 626 | . 45 84 4 96 214 78 . . . . . . . . 22 . 5 36 30 12 . . . . Thermal 267 | . 44 . . . . . 17 54 1 . 8 . 28 41 36 22 5 . . 6 5 . . . Explosive 9 | . . 4 . 1 . . 3 . . . 1 . . . . . . . . . . . . . Electromagnetic 514 | . . . . . . 30 36 7 . . 52 . 103 . 32 21 77 12 80 53 11 . . . Robot Hit Streak 21 | . 14 19 8 17 18 11 10 11 4 . 10 . 13 20 17 7 21 10 18 10 7 1 . . Robot Miss Streak 8 | . 6 6 1 4 3 5 8 5 1 . 5 . 3 3 4 4 3 3 3 3 2 . . . Penetration Max 2 | . . . . . . . . . . . . . . . . . . 1 1 2 . . . . Secondary Targets 24 | . . . . 1 7 5 1 . . . 3 . . 1 1 . . 1 4 . . . . . Max Gunslinging Chain 1 | . . . . 1 1 1 1 . . . 1 . . 1 1 . . 1 1 . . . . . Shots Hit Robots 1134 | . 50 57 2 65 156 80 43 40 5 . 89 . 92 32 104 31 69 49 78 77 14 1 . . Core Hits 537 | . 19 29 3 33 59 43 33 15 . . 51 . 35 27 46 8 28 24 40 33 11 . . . Critical Kills 16 | . . . . . . . . . . . . . . . . . . 6 7 3 . . . . Critical Parts Destroyed 16 | . . . . 2 1 1 . . . . . . . . . . . 7 2 3 . . . . Critical Strikes 64 | . 3 2 . 2 1 1 . 1 . . 5 . 4 2 7 2 2 13 11 8 . . . . Burn 7 | . 3 . . . . . . 1 . . . . 1 2 . . . . . . . . . . Destroy 32 | . . . . 2 1 1 . . . . . . . . . . . 13 9 6 . . . . Blast 3 | . . 2 . . . . . . . . . . . . 1 . . . . . . . . . Corrupt 11 | . . . . . . . . . . . . . 3 . 1 2 2 . 2 1 . . . . Sever 5 | . . . . . . . . . . . 5 . . . . . . . . . . . . . Impale 6 | . . . . . . . . . . . . . . . 5 . . . . 1 . . . . Melee Attacks 176 | . . . . . 6 . 1 . . . 52 . . . 68 . 13 13 7 14 2 . . . Impact . | . . . . . . . . . . . . . . . . . . . . . . . . . Slashing 59 | . . . . . 6 . 1 . . . 52 . . . . . . . . . . . . . Piercing 117 | . . . . . . . . . . . . . . . 68 . 13 13 7 14 2 . . . Sneak Attacks . | . . . . . . . . . . . . . . . . . . . . . . . . . Combat Hostiles . | . . . . . . . . . . . . . . . . . . . . . . . . . Follow-up Attacks . | . . . . . . . . . . . . . . . . . . . . . . . . . Damage Inflicted 29914 | . 715 1586 41 1333 2662 1664 1797 1072 . . 2845 . 2090 1168 4349 633 2250 1807 1393 1918 591 . . . Guns 12961 | . 709 29 41 1027 2662 1348 575 609 . . 447 . 443 814 710 185 464 317 1393 1009 179 . . . Cannons 6211 | . . 1021 . . . . 281 460 . . 432 . 1432 . 497 378 1255 320 . 98 37 . . . Explosions 5042 | . . 533 . 294 . 316 941 . . . 390 . 215 354 198 59 336 543 . 488 375 . . . Melee 5557 | . . . . . . . . . . . 1576 . . . 2944 . 195 524 . 318 . . . . Ramming 143 | . 6 3 . 12 . . . 3 . . . . . . . 11 . 103 . 5 . . . . Kinetic 7128 | . 338 1050 41 1027 2662 891 . . . . . . . . 351 . 94 317 238 119 . . . . Thermal 6626 | . 371 . . . . 316 938 900 . . 323 . 614 1168 717 317 347 287 . 237 91 . . . Explosive 1323 | . . 533 . 294 . . 311 . . . 185 . . . . . . . . . . . . . Electromagnetic 9137 | . . . . . . 457 548 169 . . 761 . 1476 . 337 305 1614 576 1155 1239 500 . . . Impact . | . . . . . . . . . . . . . . . . . . . . . . . . . Slashing 1576 | . . . . . . . . . . . 1576 . . . . . . . . . . . . . Piercing 3981 | . . . . . . . . . . . . . . . 2944 . 195 524 . 318 . . . . Highest Corruption 41 | . . . . . 2 2 11 3 18 18 41 . 8 . . . 5 14 27 7 17 17 17 17 Average Corruption 11 | . . . . . 1 2 7 1 12 17 22 . 5 . . . 4 8 23 5 12 17 17 17 Corruption Purged 18 | . . . . . . . . . . 5 . . . . . . . 10 . 3 . . . . Corruption Blocked . | . . . . . . . . . . . . . . . . . . . . . . . . . Effects 310 | . . . . . 1 18 11 4 8 5 68 . 12 . . . 28 37 68 17 14 3 11 5 Message Errors 70 | . . . . . . 8 2 . 2 4 17 . 3 . . . 4 7 13 5 2 2 . 1 Matter Fused 80 | . . . . . 1 2 3 1 3 . 15 . 4 . . . 9 15 14 6 3 . 3 1 Heat Flow Errors 36 | . . . . . . 1 1 2 . 1 9 . 1 . . . 5 4 7 . 4 . 1 . Energy Discharges 36 | . . . . . . 4 3 . 1 . 6 . 1 . . . 3 5 9 . 1 1 1 1 Parts Rejected 6 | . . . . . . . . . 1 . . . 1 . . . . . 1 2 . . . 1 Parts Fused 5 | . . . . . . . . . . . 1 . 2 . . . 1 . 1 . . . . . Data Loss (minor) 31 | . . . . . . 1 2 . . . 9 . . . . . 4 1 8 1 2 . 3 . Data Loss (major) 11 | . . . . . . 1 . . . . 2 . . . . . 1 2 4 . . . . 1 Misfires 10 | . . . . . . . . . 1 . 2 . . . . . . 2 2 3 . . . . Alerts 10 | . . . . . . 1 . 1 . . 1 . . . . . 1 1 2 . 1 . 2 . Misdirections 4 | . . . . . . . . . . . 1 . . . . . . . 2 . . . 1 . Weapon Failures 11 | . . . . . . . . . . . 5 . . . . . . . 5 . 1 . . . Overload Shots . | . . . . . . . . . . . . . . . . . . . . . . . . . Overflow Damage 600 | . . 9 . . . . 32 . . . 14 . 72 76 78 41 25 221 . 32 . . . . Projectiles 132 | . . . . . . . 10 . . . . . 4 . 40 41 25 . . 12 . . . . Explosions 235 | . . 9 . . . . 22 . . . 14 . 68 76 . . . 26 . 20 . . . . Melee 233 | . . . . . . . . . . . . . . . 38 . . 195 . . . . . . Knockbacks 13 | . . 7 . . . . . . . . . . . . 4 . . 2 . . . . . . Impact 2 | . . . . . . . . . . . . . . . . . . 2 . . . . . . Kinetic 10 | . . 6 . . . . . . . . . . . . 4 . . . . . . . . . Secondary 1 | . . 1 . . . . . . . . . . . . . . . . . . . . . . Self-Inflicted Damage 589 | . . . . . . 39 158 1 . . 138 . 55 57 51 . . 41 . . 49 . . . Shots 14 | . . . . . . 1 4 . . . 3 . 1 1 1 . . 1 . . 2 . . . Rammed 10 | . 1 . . 1 . . . 1 . . . . . . . 2 . 4 . 1 . . . . Targets Rammed 14 | . 2 1 . 1 . . . 1 . . . . . . . 2 . 5 . 2 . . . . Kicked . | . . . . . . . . . . . . . . . . . . . . . . . . . Crushed 4 | . 1 1 . . . . . . . . . . . . . . . 1 . 1 . . . . Highest Temperature 396 | . 171 51 . 89 270 206 135 315 . 146 268 . 63 42 292 396 239 257 227 109 396 . 136 . Average Temperature 70 | . 59 11 . 21 65 72 32 94 . 83 110 . 19 11 53 147 105 71 64 45 129 . 72 . Received Heat Transfer 4924 | . 162 210 . 250 1060 378 72 270 . . 562 . 369 105 171 156 180 54 215 109 520 12 9 60 Effects 8 | . . . . . . . . . . . 2 . . . 1 5 . . . . . . . . Shutdowns 3 | . . . . . . . . . . . . . . . . 3 . . . . . . . . Energy Bleed 2 | . . . . . . . . . . . 2 . . . . . . . . . . . . . Interference 1 | . . . . . . . . . . . . . . . 1 . . . . . . . . . Matter Decay 2 | . . . . . . . . . . . . . . . . 2 . . . . . . . . Siege Activations 6 | . . . . . . . . . . . . . . . . . 2 1 2 1 . . . . Total Turns 172 | . . . . . . . . . . . . . . . . . 9 21 57 85 . . . . Longest Duration 85 | . . . . . . . . . . . . . . . . . 6 21 29 85 . . . . Martial Activations . | . . . . . . . . . . . . . . . . . . . . . . . . . Shielding Activations . | . . . . . . . . . . . . . . . . . . . . . . . . . Robots Disrupted 2 | . . . . . . . . . . . . . . . . . . . . 2 . . . . Combat Hostiles 2 | . . . . . . . . . . . . . . . . . . . . 2 . . . . Robots Corrupted 16 | . . . . . . . . 1 . . 2 . 2 . 1 1 1 1 2 4 1 . . . Combat Hostiles 14 | . . . . . . . . 1 . . . . 2 . 1 1 1 1 2 4 1 . . . Parts Fried 59 | . . . . . . 4 1 1 . . 9 . 12 . . 2 4 4 11 8 3 . . . Impact Corruptions 1 | . . . . . . . . . . . . . . . . . . 1 . . . . . . Robots Melted 1 | . . . . . . . . . . . . . 1 . . . . . . . . . . . Combat Hostiles 1 | . . . . . . . . . . . . . 1 . . . . . . . . . . . Parts Melted 36 | . 1 . . . . . 1 9 . . . . 7 10 3 . . 3 . 1 1 . . . Heat Transferred 10227 | . 1258 . . . . 350 1137 1627 . . 374 . 1001 2089 1207 272 203 300 . 298 111 . . . Parts Sabotaged . | . . . . . . . . . . . . . . . . . . . . . . . . . Parts Stolen . | . . . . . . . . . . . . . . . . . . . . . . . . . Parts Stripped . | . . . . . . . . . . . . . . . . . . . . . . . . . Power Chain Reactions 22 | . . . . . . 4 7 . . . 2 . 2 . 1 1 2 2 . 1 . . . . Alert | -11 -10 -9 -9 -8 -8 -8 -8 -7 -7 -7 -7 -6 -6 -5 -5 -5 -5 -5 -5 -4 -4 -4 -4 -4 ------- Run | Yrd Mat Mat Min Mat Gar Mat Gar Fac Was Fac Gar Fac Gar Fac Gar Fac Gar Fac Gar Fac Gar Fac Upp Upp Maximum Alert Level 5 | . . 1 . . 3 1 2 1 . . 2 1 4 3 5 3 3 2 3 2 . . . . Low Security (%) 29 | . 100 76 100 100 26 35 4 60 100 100 14 . . . . . 1 12 6 7 100 100 . . Level 1 19 | . . 23 . . 21 64 59 39 . . 25 100 10 . . 34 8 . 14 62 . . . . Level 2 27 | . . . . . 45 . 36 . . . 60 . 31 82 16 . 26 86 53 29 . . . . Level 3 17 | . . . . . 6 . . . . . . . 57 17 23 65 62 . 25 . . . . . Level 4 4 | . . . . . . . . . . . . . . . 50 . . . . . . . . . Level 5 . | . . . . . . . . . . . . . . . 9 . . . . . . . . . High Security . | . . . . . . . . . . . . . . . . . . . . . . . . . Max Security . | . . . . . . . . . . . . . . . . . . . . . . . . . Peak Influence 1736 | . 63 315 108 199 760 370 508 266 60 . 667 350 1189 748 1736 1053 1095 574 1014 532 186 54 . . Initial 911 | . . 16 108 . 1 370 119 266 60 . . 350 224 623 509 911 198 574 111 532 74 54 . . Average 477 | . 14 109 19 67 404 224 354 197 26 . 384 339 778 636 1162 708 798 442 586 344 120 40 . . Influence Increases 11717 | . 254 532 15 472 869 500 459 228 . . 1047 . 1265 275 1537 391 1047 570 1173 706 242 30 15 90 Destroy 0b10 Robot/C 6200 | . 140 360 . 260 560 320 320 120 . . 440 . 660 200 680 240 480 320 580 440 80 . . . Destroy 0b10 Robot/NC 315 | . 15 30 15 25 . 35 . . . . 40 . . 5 45 5 15 60 . 25 . . . . Destroy Leader 756 | . 42 94 . 64 10 92 20 50 . . 40 . 30 20 30 40 50 54 50 70 . . . . Allied During Kill 687 | . . . . . 3 . 8 . . . 66 . 175 . 86 23 61 59 116 90 . . . . Successful Hack 190 | . 26 16 . 24 7 13 . 12 . . 14 . 42 . . . . 12 . 24 . . . . Disable Machine 285 | . 15 . . 45 . 15 15 . . . . . 15 15 . 15 60 45 . 30 . 15 . . Anti-Garrison Action 1850 | . . . . . 200 . 50 . . . 300 . 300 . 250 . 300 . 400 . 50 . . . Destroy Structure 579 | . 1 17 . 9 14 25 46 1 . . 57 . 13 20 176 68 66 20 27 12 7 . . . Partial Spotted 30 | . . . . . . . . . . . . . . . 15 . . . . . . 15 . . Lose Combat Pursuer 825 | . 15 15 . 45 75 . . 45 . . 90 . 30 15 255 . 15 . . 15 105 . 15 90 Influence Decreases 11666 | . 215 292 294 469 112 1076 135 564 172 . 380 347 396 736 529 1843 236 1506 318 1614 243 101 34 54 Entered New Map 4266 | . . 23 171 . 2 390 65 242 112 . . 317 96 566 219 825 86 521 48 482 32 51 14 4 Time Decay 3140 | . 205 259 123 265 . 356 . 302 60 . . 30 . 160 . 368 . 440 . 482 . 30 20 40 Lost Part 1091 | . 10 10 . 20 110 30 50 20 . . 140 . 70 10 190 20 30 20 50 150 151 . . 10 Lost Ally 1660 | . . . . . . . 20 . . . 240 . 230 . 120 130 120 150 220 350 60 20 . . Purge Threat 1509 | . . . . 184 . 300 . . . . . . . . . 500 . 375 . 150 . . . . Squads Dispatched 28 | . 3 2 . 2 . 4 . 5 . . . . . . . 2 . 3 . 6 . 1 . . Investigation 4 | . . . . 1 . 1 . 1 . . . . . . . . . . . . . 1 . . Extermination 7 | . . . . . . . . 2 . . . . . . . 1 . 1 . 3 . . . . Reinforcement 16 | . 3 2 . 1 . 3 . 2 . . . . . . . 1 . 2 . 2 . . . . Assault 1 | . . . . . . . . . . . . . . . . . . . . 1 . . . . Garrison . | . . . . . . . . . . . . . . . . . . . . . . . . . Intercept . | . . . . . . . . . . . . . . . . . . . . . . . . . Searches Triggered . | . . . . . . . . . . . . . . . . . . . . . . . . . Construction Impeded 2 | . . 1 . . . 1 . . . . . . . . . . . . . . . . . . Haulers Reinforced . | . . . . . . . . . . . . . . . . . . . . . . . . . Active Scanning Responses . | . . . . . . . . . . . . . . . . . . . . . . . . . Cargo Convoy Interrupts . | . . . . . . . . . . . . . . . . . . . . . . . . . Stealth | -11 -10 -9 -9 -8 -8 -8 -8 -7 -7 -7 -7 -6 -6 -5 -5 -5 -5 -5 -5 -4 -4 -4 -4 -4 --------- Run | Yrd Mat Mat Min Mat Gar Mat Gar Fac Was Fac Gar Fac Gar Fac Gar Fac Gar Fac Gar Fac Gar Fac Upp Upp Distress Signals 10 | . 1 1 . 1 . 1 . 1 . . 4 . . . . . . . . 1 . . . . Communications Jammed 231 | . . . . . . . . . . . . . . . . . 19 189 . 23 . . . . Distress Signals 229 | . . . . . . . . . . . . . . . . . 19 189 . 21 . . . . Times Spotted 533 | . 14 22 . 29 30 23 15 11 6 . 45 . 36 12 62 18 33 29 47 46 29 4 6 16 Peak Tracking Total 21 | . 2 5 . 6 6 7 5 3 6 . 10 . 5 5 8 3 5 6 7 7 21 4 9 12 Tactical Retreats 28 | . 1 1 . 1 2 . . 1 . . 4 . 2 1 8 . 1 . . 1 1 . 1 3 Traps | -11 -10 -9 -9 -8 -8 -8 -8 -7 -7 -7 -7 -6 -6 -5 -5 -5 -5 -5 -5 -4 -4 -4 -4 -4 ------- Run | Yrd Mat Mat Min Mat Gar Mat Gar Fac Was Fac Gar Fac Gar Fac Gar Fac Gar Fac Gar Fac Gar Fac Upp Upp Traps Triggered 23 | . . 1 . 1 2 . . 1 . . 3 . 2 . 6 1 2 1 . 2 1 . . . Indirectly . | . . . . . . . . . . . . . . . . . . . . . . . . . Trap Hack Attempts . | . . . . . . . . . . . . . . . . . . . . . . . . . Triggered . | . . . . . . . . . . . . . . . . . . . . . . . . . Disarmed . | . . . . . . . . . . . . . . . . . . . . . . . . . Reprogrammed . | . . . . . . . . . . . . . . . . . . . . . . . . . Reused . | . . . . . . . . . . . . . . . . . . . . . . . . . Traps Extracted . | . . . . . . . . . . . . . . . . . . . . . . . . . Installed . | . . . . . . . . . . . . . . . . . . . . . . . . . Triggered . | . . . . . . . . . . . . . . . . . . . . . . . . . Machines | -11 -10 -9 -9 -8 -8 -8 -8 -7 -7 -7 -7 -6 -6 -5 -5 -5 -5 -5 -5 -4 -4 -4 -4 -4 ---------- Run | Yrd Mat Mat Min Mat Gar Mat Gar Fac Was Fac Gar Fac Gar Fac Gar Fac Gar Fac Gar Fac Gar Fac Upp Upp Machines Disabled 40 | . 1 . . 3 2 1 1 . . . 4 . 5 1 3 1 7 3 4 2 1 1 . . Max in Single Turn 2 | . 1 . . 2 1 1 1 . . . 1 . 1 1 1 . 1 . 1 1 1 . . . Garrison Relay 22 | . . . . . 2 . . . . . 4 . 4 . 3 . 3 . 5 . 1 . . . Phase Generator 1 | . . . . . . . . . . . . . . . . . . . . . 1 . . . Machines Repaired . | . . . . . . . . . . . . . . . . . . . . . . . . . Machines Dismantled . | . . . . . . . . . . . . . . . . . . . . . . . . . Machines Sabotaged . | . . . . . . . . . . . . . . . . . . . . . . . . . Overloaded Fab Kills . | . . . . . . . . . . . . . . . . . . . . . . . . . Hacking | -11 -10 -9 -9 -8 -8 -8 -8 -7 -7 -7 -7 -6 -6 -5 -5 -5 -5 -5 -5 -4 -4 -4 -4 -4 --------- Run | Yrd Mat Mat Min Mat Gar Mat Gar Fac Was Fac Gar Fac Gar Fac Gar Fac Gar Fac Gar Fac Gar Fac Upp Upp Machines Accessed 55 | . 4 5 1 8 3 5 1 3 . 1 1 1 2 1 . 6 1 5 2 3 . 1 . 1 Terminals 37 | . 4 5 . 6 3 3 1 2 . . 1 . 2 . . 3 1 3 2 1 . . . . Fabricators 2 | . . . . . . . . . . . . . . . . 1 . . . . . 1 . . Repair Stations 5 | . . . . 1 . 1 . 1 . . . . . . . . . 1 . 1 . . . . Recycling Units . | . . . . . . . . . . . . . . . . . . . . . . . . . Scanalyzers 1 | . . . . . . . . . . . . . . . . 1 . . . . . . . . Garrison Access 8 | . . . . 1 . 1 . . . 1 . 1 . 1 . 1 . 1 . 1 . . . . Total Hacks 133 | . 13 13 1 20 3 15 5 6 . 1 1 1 5 1 . 16 2 11 6 9 . 3 . 1 Successful 69 | . 11 5 1 12 2 11 1 2 . 1 1 1 3 1 . 7 . 4 . 4 . 1 . 1 Failed 63 | . 2 8 . 8 1 4 4 4 . . . . 2 . . 8 2 7 6 5 . 2 . . Catastrophic 14 | . . 1 . 1 1 1 . 2 . . . . . . . 4 . 1 1 1 . 1 . . Database Lockouts 1 | . . . . . . . . . . . . . . . . 1 . . . . . . . . Manual 50 | . 10 12 . 11 1 4 . . . . . . 3 . . 4 . 4 . . . 1 . . Terminals 96 | . 13 13 . 17 3 10 5 4 . . 1 . 5 . . 5 2 8 6 4 . . . . Fabricators 4 | . . . . . . . . . . . . . . . . 1 . . . . . 3 . . Repair Stations 14 | . . . . 2 . 4 . 2 . . . . . . . . . 2 . 4 . . . . Recycling Units . | . . . . . . . . . . . . . . . . . . . . . . . . . Scanalyzers 9 | . . . . . . . . . . . . . . . . 9 . . . . . . . . Garrison Access 8 | . . . . 1 . 1 . . . 1 . 1 . 1 . 1 . 1 . 1 . . . . Terminal Hacks 28 | . 5 1 1 6 2 5 1 1 . . 1 . 2 . . . . 1 . 1 . . . 1 Robot Analysis 3 | . 3 . . . . . . . . . . . . . . . . . . . . . . . Open Door 4 | . . . 1 . 1 . 1 . . . . . . . . . . . . . . . . 1 Level Access Points 1 | . 1 . . . . . . . . . . . . . . . . . . . . . . . Branch Access Points 3 | . . . . 1 . . . 1 . . . . . . . . . 1 . . . . . . Emergency Access Points 2 | . . . . . . . . . . . 1 . 1 . . . . . . . . . . . Machine Index 1 | . . . . . . 1 . . . . . . . . . . . . . . . . . . Terminal Index 2 | . 1 1 . . . . . . . . . . . . . . . . . . . . . . Alert Level 3 | . . . . 2 . 1 . . . . . . . . . . . . . . . . . . Unreport Threat 5 | . . . . 2 . 2 . . . . . . . . . . . . . 1 . . . . Zone Layout 2 | . . . . 1 . 1 . . . . . . . . . . . . . . . . . . Garrison Registry 1 | . . . . . 1 . . . . . . . . . . . . . . . . . . . Security Stations 1 | . . . . . . . . . . . . . 1 . . . . . . . . . . . Fabricator Hacks 1 | . . . . . . . . . . . . . . . . . . . . . . 1 . . Load Schematic 1 | . . . . . . . . . . . . . . . . . . . . . . 1 . . Repair Station Hacks 11 | . . . . 2 . 4 . 1 . . . . . . . . . 2 . 2 . . . . Scan Component 7 | . . . . 1 . 2 . 1 . . . . . . . . . 1 . 2 . . . . Repair 4 | . . . . 1 . 2 . . . . . . . . . . . 1 . . . . . . Recycling Unit Hacks . | . . . . . . . . . . . . . . . . . . . . . . . . . Scanalyzer 6 | . . . . . . . . . . . . . . . . 6 . . . . . . . . Insert Component 2 | . . . . . . . . . . . . . . . . 2 . . . . . . . . Analyze 3 | . . . . . . . . . . . . . . . . 3 . . . . . . . . Retrieve Study 1 | . . . . . . . . . . . . . . . . 1 . . . . . . . . Garrison Access Hacks 8 | . . . . 1 . 1 . . . 1 . 1 . 1 . 1 . 1 . 1 . . . . Unlock Access 8 | . . . . 1 . 1 . . . 1 . 1 . 1 . 1 . 1 . 1 . . . . Unauthorized Hacks 15 | . 6 4 . 3 . 1 . . . . . . 1 . . . . . . . . . . . Terminals 15 | . 6 4 . 3 . 1 . . . . . . 1 . . . . . . . . . . . Botnet 8 | . 2 1 . 3 . 1 . . . . . . 1 . . . . . . . . . . . Operators 1 | . 1 . . . . . . . . . . . . . . . . . . . . . . . Skim 6 | . 3 3 . . . . . . . . . . . . . . . . . . . . . . Fabricators . | . . . . . . . . . . . . . . . . . . . . . . . . . Repair Stations . | . . . . . . . . . . . . . . . . . . . . . . . . . Recycling Units . | . . . . . . . . . . . . . . . . . . . . . . . . . Scanalyzers . | . . . . . . . . . . . . . . . . . . . . . . . . . Garrison Access . | . . . . . . . . . . . . . . . . . . . . . . . . . Data Cores Recovered . | . . . . . . . . . . . . . . . . . . . . . . . . . Used . | . . . . . . . . . . . . . . . . . . . . . . . . . Hacking Detections 45 | . 3 5 . 8 2 3 1 3 . 1 1 . 1 . . 6 1 5 2 2 . 1 . . Full Trace Events 8 | . . . . 1 . 1 1 1 . . . . . . . . 1 . 2 . . 1 . . Feedback Events 1 | . . . . . . . . . . . . . . . . . . . 1 . . . . . Corruption 1 | . . . . . . . . . . . . . . . . . . . 1 . . . . . Feedback Blocked . | . . . . . . . . . . . . . . . . . . . . . . . . . Robot Schematics Acquired . | . . . . . . . . . . . . . . . . . . . . . . . . . Robots Built . | . . . . . . . . . . . . . . . . . . . . . . . . . Authchips . | . . . . . . . . . . . . . . . . . . . . . . . . . Time . | . . . . . . . . . . . . . . . . . . . . . . . . . Total Robot Build Rating . | . . . . . . . . . . . . . . . . . . . . . . . . . Part Schematics Acquired 1 | . . . . . . . . . . . . . . . . 1 . . . . . . . . Parts Built . | . . . . . . . . . . . . . . . . . . . . . . . . . Authchips . | . . . . . . . . . . . . . . . . . . . . . . . . . Time . | . . . . . . . . . . . . . . . . . . . . . . . . . Total Part Build Rating . | . . . . . . . . . . . . . . . . . . . . . . . . . Part Studies Acquired 1 | . . . . . . . . . . . . . . . . 1 . . . . . . . . Parts Repaired 4 | . . . . 1 . 2 . . . . . . . . . . . 1 . . . . . . Time 188 | . . . . 44 . 82 . . . . . . . . . . . 62 . . . . . . Parts Recycled . | . . . . . . . . . . . . . . . . . . . . . . . . . Recycled Matter . | . . . . . . . . . . . . . . . . . . . . . . . . . Retrieved Matter . | . . . . . . . . . . . . . . . . . . . . . . . . . Retrieved Components . | . . . . . . . . . . . . . . . . . . . . . . . . . Parts Scanalyzed 2 | . . . . . . . . . . . . . . . . 2 . . . . . . . . Part Schematics Acquired 1 | . . . . . . . . . . . . . . . . 1 . . . . . . . . Parts Damaged 1 | . . . . . . . . . . . . . . . . 1 . . . . . . . . Bothacking | -11 -10 -9 -9 -8 -8 -8 -8 -7 -7 -7 -7 -6 -6 -5 -5 -5 -5 -5 -5 -4 -4 -4 -4 -4 ------------ Run | Yrd Mat Mat Min Mat Gar Mat Gar Fac Was Fac Gar Fac Gar Fac Gar Fac Gar Fac Gar Fac Gar Fac Upp Upp Used RIF Installer 9 | . . . . . 2 . 1 . . . 2 . 1 . 1 . 1 . 1 . . . . . Coupler Efficiency 2 | . . . . . . . 1 . . . . . . . . . 1 . . . . . . . Code Merge 2 | . . . . . . . . . . . 1 . 1 . . . . . . . . . . . Command Fork 1 | . . . . . . . . . . . 1 . . . . . . . . . . . . . Signal Jammer 1 | . . . . . . . . . . . . . . . 1 . . . . . . . . . Watcher Feeds 1 | . . . . . 1 . . . . . . . . . . . . . . . . . . . Structural Interface 1 | . . . . . . . . . . . . . . . . . . . 1 . . . . . Robots Hacked 78 | . . . . . . . . . 5 . 10 . 3 . 7 6 10 8 11 14 3 1 . . Non-combat 12 | . . . . . . . . . . . 1 . . . . 2 2 4 . 3 . . . . Combat 66 | . . . . . . . . . 5 . 9 . 3 . 7 4 8 4 11 11 3 1 . . Robot Hacks Applied 88 | . . . . . . . . . 5 . 10 . 4 . 8 12 10 10 11 14 3 1 . . parse_system 4 | . . . . . . . . . . . . . 1 . 1 2 . . . . . . . . drop_inventory 3 | . . . . . . . . . . . . . . . . 1 . . . 2 . . . . purge_threat 8 | . . . . . . . . . . . . . . . . 5 . 3 . . . . . . map_route 2 | . . . . . . . . . . . . . . . . . . 2 . . . . . . mark_security 1 | . . . . . . . . . . . . . . . . . 1 . . . . . . . ignore_targets 5 | . . . . . . . . . 5 . . . . . . . . . . . . . . . amplify_resonance 1 | . . . . . . . . . . . . . . . 1 . . . . . . . . . disable_weapons 4 | . . . . . . . . . . . . . . . . . 1 . . 3 . . . . overwrite_iff 7 | . . . . . . . . . . . 2 . 1 . 2 1 . . 1 . . . . . formatsys_high 52 | . . . . . . . . . . . 8 . 2 . 4 3 8 5 10 8 3 1 . . formatsys_deep 1 | . . . . . . . . . . . . . . . . . . . . 1 . . . . Relay Couplers Released 96 | . . . . . 9 . 4 . . . 19 . 16 . 11 . 9 3 20 . 5 . . . Machine Destruction 85 | . . . . . 9 . . . . . 15 . 16 . 11 . 9 . 20 . 5 . . . Programmers 11 | . . . . . . . 4 . . . 4 . . . . . . 3 . . . . . . Attached 38 | . . . . . . . . . 1 . 7 . 4 . 4 1 5 . 8 2 3 . . 3 Merged Code Value 290 | . . . . . . . . . . . 17 . 82 . 15 . 49 . 111 . 16 . . . Fabnet Peak Effective % . | . . . . . . . . . . . . . . . . . . . . . . . . . Robots Rewired 15 | . . . . . . . . . . . 8 . . . 4 . 3 . . . . . . . Allies Hacked 6 | . . . . . . . . . . . 2 . . . . . . 2 . 2 . . . . Hacks Repelled . | . . . . . . . . . . . . . . . . . . . . . . . . . Allies | -11 -10 -9 -9 -8 -8 -8 -8 -7 -7 -7 -7 -6 -6 -5 -5 -5 -5 -5 -5 -4 -4 -4 -4 -4 -------- Run | Yrd Mat Mat Min Mat Gar Mat Gar Fac Was Fac Gar Fac Gar Fac Gar Fac Gar Fac Gar Fac Gar Fac Upp Upp Total Allies 101 | . . . . . 1 . 2 . . . 21 . 7 . 11 5 12 6 17 15 3 1 . . Largest Group 12 | . . . . . 1 . 2 . . . 12 7 9 . 6 4 4 6 9 6 1 1 . . Highest-Rated Group 333 | . . . . . 31 . 70 . . . 282 150 272 . 333 158 155 160 301 247 47 49 . . Highest-Rated Ally 148 | . . . . . 31 . 39 . . . 32 32 62 . 148 85 49 49 49 142 47 49 . . Total Orders 2 | . . . . . . . . . . . . . . . 2 . . . . . . . . . STAY 1 | . . . . . . . . . . . . . . . 1 . . . . . . . . . FOLLOW 1 | . . . . . . . . . . . . . . . 1 . . . . . . . . . Ally Attacks 521 | . . . . . 20 . 3 . . . 49 . 80 . 59 27 65 55 79 82 . 2 . . Total Damage 12635 | . . . . . 423 . . . . . 716 . 2275 . 1729 1174 2136 915 1229 1986 . 52 . . Kills 83 | . . . . . 3 . . . . . 6 . 17 . 13 11 8 9 8 8 . . . . Allies Corrupted 6 | . . . . . . . . . . . 1 . . . . 1 1 2 . 1 . . . . Allies Melted 1 | . . . . . . . . . . . . . . . . . . . . 1 . . . . Intel | -11 -10 -9 -9 -8 -8 -8 -8 -7 -7 -7 -7 -6 -6 -5 -5 -5 -5 -5 -5 -4 -4 -4 -4 -4 ------- Run | Yrd Mat Mat Min Mat Gar Mat Gar Fac Was Fac Gar Fac Gar Fac Gar Fac Gar Fac Gar Fac Gar Fac Upp Upp Active Infowar (turns) 1433 | . . 142 733 122 . . . . . . . . . . . . . . . 266 168 . 2 . Sensors 1 | . . . 1 . . . . . . . . . . . . . . . . . . . . . Terrain 997 | . . 142 733 122 . . . . . . . . . . . . . . . . . . . . Jamming 436 | . . . . . . . . . . . . . . . . . . . . 266 168 . 2 . Robot Analysis Total 3 | . 3 . . . . . . . . . . . . . . . . . . . . . . . Derelict Logs Recovered 3 | . . . 1 . . . . . . . . . . . . . . . . . . . 2 . Drone Launches . | . . . . . . . . . . . . . . . . . . . . . . . . . Drone Recoveries . | . . . . . . . . . . . . . . . . . . . . . . . . . Exploration | -11 -10 -9 -9 -8 -8 -8 -8 -7 -7 -7 -7 -6 -6 -5 -5 -5 -5 -5 -5 -4 -4 -4 -4 -4 ------------- Run | Yrd Mat Mat Min Mat Gar Mat Gar Fac Was Fac Gar Fac Gar Fac Gar Fac Gar Fac Gar Fac Gar Fac Upp Upp Turns Passed 18677 | . 672 838 733 1053 1282 811 484 662 158 114 1348 60 1205 329 1781 853 1783 1087 1479 1242 373 72 168 90 Spaces Moved 9589 | 1 362 387 446 482 589 342 223 390 128 39 686 35 596 147 845 445 918 527 731 468 168 91 394 149 Core 102 | . . . . . . . . . . . . . . . . . . . . . 42 60 . . Treads 7200 | . 184 387 446 482 589 342 223 60 . . 83 35 596 147 538 445 918 527 731 467 . . . . Legs 306 | 1 178 . . . . . . . . . . . . . . . . . . 1 126 . . . Wheels 1407 | . . . . . . . . 330 128 39 603 . . . 307 . . . . . . . . . Hover . | . . . . . . . . . . . . . . . . . . . . . . . . . Flight 574 | . . . . . . . . . . . . . . . . . . . . . . 31 394 149 Fastest Speed 37 | 120 120 160 160 160 162 162 160 100 100 100 100 160 160 160 115 160 160 163 160 160 50 37 37 37 Average Speed 147 | 120 140 160 160 160 163 162 161 135 107 102 120 160 160 160 149 160 161 166 160 168 178 62 37 37 Slowest Speed 400 | 120 160 240 160 162 245 162 162 240 115 115 160 160 160 160 400 160 165 245 163 260 330 100 40 37 Overloaded Moves . | . . . . . . . . . . . . . . . . . . . . . . . . . Propulsion Burnouts . | . . . . . . . . . . . . . . . . . . . . . . . . . Robots Hopped . | . . . . . . . . . . . . . . . . . . . . . . . . . Potential Cave-ins . | . . . . . . . . . . . . . . . . . . . . . . . . . Cave-ins Triggered . | . . . . . . . . . . . . . . . . . . . . . . . . . Exploration Rate (%) 41 | 2 59 35 93 42 64 40 39 14 77 2 70 3 74 6 74 16 81 25 70 26 35 4 56 27 Regions Visited 24 Branch Regions 3 Pre-discovered Areas . | . . . . . . . . . . . . . . . . . . . . . . . . . Known Exits Taken 10 | . 1 . 1 1 . 1 . . . 1 . 1 . 1 . 1 . 1 . 1 . . . . Unknown Exits Taken 4 | 1 . 1 . . . . . . . . . . . . . . . . . . . 1 1 . Scrap Searched 4 | . . . 1 . . . . . . . . . . . . . . . . . . . 3 . Spaces Dug 48 | . . . . . 4 . . . . . 5 . . . 12 9 7 5 5 1 . . . . Terrain Destroyed 268 | . . 25 . 10 4 23 52 . . . 27 . 15 15 36 20 19 10 7 4 1 . . . Melee 39 | . . . . . 4 . . . . . 5 . . . 12 . 7 5 5 1 . . . . Projectile 29 | . . . . . . . 1 . . . . . . . 6 16 3 . . 2 1 . . . AOE 196 | . . 25 . 10 . 23 51 . . . 22 . 15 15 18 4 9 3 . 1 . . . . Terrain Rammed . | . . . . . . . . . . . . . . . . . . . . . . . . . Walls Destroyed . | . . . . . . . . . . . . . . . . . . . . . . . . . Machines Disabled . | . . . . . . . . . . . . . . . . . . . . . . . . . Actions | -11 -10 -9 -9 -8 -8 -8 -8 -7 -7 -7 -7 -6 -6 -5 -5 -5 -5 -5 -5 -4 -4 -4 -4 -4 --------- Run | Yrd Mat Mat Min Mat Gar Mat Gar Fac Was Fac Gar Fac Gar Fac Gar Fac Gar Fac Gar Fac Gar Fac Upp Upp Total 12489 | . 436 520 464 688 766 512 285 459 146 113 1057 39 714 194 1151 535 1098 659 913 825 219 103 410 183 Wait 854 | . 13 36 . 106 30 89 10 7 6 68 57 . 13 12 60 9 15 38 43 192 4 4 14 28 Move 9572 | . 361 386 445 482 588 341 222 390 127 38 685 35 595 147 844 445 917 527 730 468 167 90 393 149 Hop . | . . . . . . . . . . . . . . . . . . . . . . . . . Pick Up 172 | . 7 12 8 9 7 9 2 4 1 . 26 . 5 6 27 4 14 5 12 6 5 1 . 2 Fast Attach 154 | . 1 13 . 9 6 6 2 6 1 3 20 1 6 2 17 5 7 7 11 19 4 4 3 1 Attach 106 | . 3 1 . 2 9 3 3 3 1 1 13 2 8 2 15 1 7 1 6 13 7 2 . 3 Detach 14 | . . . . 2 . . . 1 1 1 . . 1 . . . 1 . . 6 1 . . . Swap 155 | . 1 7 2 9 9 1 8 6 1 . 15 . 3 3 22 12 24 10 6 13 3 . . . Drop 188 | . 3 18 7 19 4 9 1 7 2 2 23 1 6 1 22 8 17 7 12 15 3 1 . . Fire 930 | . 45 46 2 49 107 54 35 34 6 . 54 . 77 21 61 49 68 44 82 77 18 1 . . Melee 176 | . . . . . 6 . 1 . . . 52 . . . 68 . 13 13 7 14 2 . . . Ram 1 | . . . . . . . . 1 . . . . . . . . . . . . . . . . Kick . | . . . . . . . . . . . . . . . . . . . . . . . . . Crush 13 | . 2 1 . 1 . . . . . . . . . . . 2 . 5 . 2 . . . . Escape Stasis 26 | . . . . . . . . . . . 16 . . . 4 . 1 . . . 5 . . . Rewire 128 | . . . . . . . 1 . . . 96 . . . 11 . 14 2 4 . . . . . Trap . | . . . . . . . . . . . . . . . . . . . . . . . . . Miscellaneous . | . . . . . . . . . . . . . . . . . . . . . . . . . Route ------- -11/Scrapyard -10/Materials (discovered 3 exits: *Mat x3) -9/Materials -9/Mines (discovered 2 exits: *Mat x2) -8/Materials (discovered 2 exits: *Fac / Gar) -8/Garrison (discovered 3 exits: *Mat x3) -8/Materials (discovered 2 exits: *Fac / Gar) -8/Garrison -7/Factory (discovered 4 exits: Sto x2 / Low x2) -7/Waste -7/Factory -7/Garrison (discovered 3 exits: *Fac x3) -6/Factory -6/Garrison (discovered 3 exits: *Fac x3) -5/Factory -5/Garrison (discovered 4 exits: *Fac x3 / *Fac) -5/Factory (discovered 3 exits: *Fac / *Upp / Gar) -5/Garrison (discovered 4 exits: *Fac x3 / *Fac) -5/Factory (discovered 4 exits: *Fac / Upp x2 / Gar) -5/Garrison (discovered 3 exits: *Fac x3) -4/Factory (discovered 2 exits: [*Upp] / Gar) -4/Garrison -4/Factory -4/Upper Caves -4/Upper Caves History --------- Turn | Location | Event 1 | -11/Scrapyard | Discovered new exit (range 0) 1 | -11/Scrapyard | Entered Materials 2 | -10/Materials | Met a group of wandering Federalists 37 | -10/Materials | Identified exit to Materials 314 | -10/Materials | Build established: Mutant 673 | -10/Materials | Entered another Materials area 673 | -9/Materials | Evolved 2 slots: Propulsion x1, Utility x1 1067 | -9/Materials | Discovered new exit (range 6) 1511 | -9/Materials | Entered Mines 1553 | -9/Mines | Found a damaged Exp. Sensor Array with a note attached 1556 | -9/Mines | Found Prototype Device 1578 | -9/Mines | Discovered new exit (range 9) 1626 | -9/Mines | Identified Exp. Sensor Array 1654 | -9/Mines | Identified exit to Materials 1707 | -9/Mines | Build established: Scavenger-Mutant 1778 | -9/Mines | Received a Rocket Launcher from a helpful Derelict 2057 | -9/Mines | Met a Derelict who couldn't figure out how to use a Trap Extractor 2244 | -9/Mines | Entered Materials 2244 | -8/Materials | Evolved 2 slots: Propulsion x1, Utility x1 2693 | -8/Materials | Discovered new exit (range 14) 2909 | -8/Materials | Repaired Imp. Shield Generator 3297 | -8/Materials | Identified exit to Garrison 3297 | -8/Materials | Entered Garrison 3335 | -8/Garrison | Triggered checkpoint 3430 | -8/Garrison | Lost 3 parts (3u) 3502 | -8/Garrison | Garrison Relay disabled 3663 | -8/Garrison | Triggered checkpoint 3688 | -8/Garrison | Triggered checkpoint 3779 | -8/Garrison | Installed Relay Interface Framework 3901 | -8/Garrison | Triggered checkpoint 3954 | -8/Garrison | Garrison Relay disabled 3997 | -8/Garrison | Rescued a captive Derelict 4036 | -8/Garrison | Discovered new exit (range 3) 4165 | -8/Garrison | Spotted B-75 Beast 4191 | -8/Garrison | Allies destroyed B-75 Beast 4248 | -8/Garrison | Discovered new exit (range 27) 4248 | -8/Garrison | Discovered new exit (range 43) 4248 | -8/Garrison | Discovered new exit (range 84) 4413 | -8/Garrison | Triggered checkpoint 4487 | -8/Garrison | Expanded RIF knowledge: Watcher Feeds 4579 | -8/Garrison | Entered Materials 4637 | -8/Materials | Repaired Arm. Treads 4682 | -8/Materials | Repaired Imp. Deuterium Engine 5010 | -8/Materials | Core integrity fell below 50% 5366 | -8/Materials | Discovered new exit (range 5) 5383 | -8/Materials | Identified exit to Garrison 5390 | -8/Materials | Entered Garrison 5407 | -8/Garrison | Rescued a captive Derelict 5408 | -8/Garrison | Rescued a captive Derelict 5465 | -8/Garrison | Build established: Mutant 5489 | -8/Garrison | Expanded RIF knowledge: Coupler Efficiency 5521 | -8/Garrison | P-60 Hacker assimilated allied X8-B9E(h) 5527 | -8/Garrison | Core integrity fell below 20% 5556 | -8/Garrison | System corruption reached 10% 5585 | -8/Garrison | Lost 4 parts (2n2u) 5690 | -8/Garrison | Triggered checkpoint 5690 | -8/Garrison | Triggered checkpoint 5710 | -8/Garrison | Triggered checkpoint 5746 | -8/Garrison | Destroyed 8 combat bots 5859 | -8/Garrison | Discovered new exit (range 10) 5874 | -8/Garrison | Entered Factory 5874 | -7/Factory | Evolved 2 slots: Power x1, Utility x1 5946 | -7/Factory | Identified exit to Storage 5946 | -7/Factory | Identified exit to Lower Caves 6038 | -7/Factory | Build established: Scavenger-Mutant 6536 | -7/Factory | Sucked down chute 6536 | -7/Factory | Entered Waste 6551 | -7/Waste | EMP discharged 6551 | -7/Waste | System corruption reached 10% 6576 | -7/Waste | Spotted C-40 Crusher 6622 | -7/Waste | Spotted C-40 Crusher 6645 | -7/Waste | Spotted C-40 Crusher 6646 | -7/Waste | Spotted C-40 Crusher 6648 | -7/Waste | Spotted C-40 Crusher 6651 | -7/Waste | EMP discharged 6656 | -7/Waste | Spotted C-40 Crusher 6685 | -7/Waste | Discovered new exit (range 10) 6694 | -7/Waste | Entered Factory 6727 | -7/Factory | Build established: Mutant 6736 | -7/Factory | Identified exit to Garrison 6808 | -7/Factory | Entered Garrison 6948 | -7/Garrison | Destroyed 8 combat bots 6989 | -7/Garrison | Lost 11 parts (2p2n3u4w) 7002 | -7/Garrison | Triggered checkpoint 7142 | -7/Garrison | Discovered new exit (range 9) 7168 | -7/Garrison | Expanded RIF knowledge: Command Fork 7182 | -7/Garrison | Triggered checkpoint 7220 | -7/Garrison | Core integrity fell below 50% 7305 | -7/Garrison | Garrison Relay disabled 7426 | -7/Garrison | Triggered checkpoint 7676 | -7/Garrison | Discovered new exit (range 9) 7684 | -7/Garrison | Triggered checkpoint 7712 | -7/Garrison | Triggered checkpoint 7720 | -7/Garrison | Expanded RIF knowledge: Code Merge 7763 | -7/Garrison | Garrison Relay disabled 7814 | -7/Garrison | Garrison Relay disabled 7860 | -7/Garrison | Lost 7 allies 7890 | -7/Garrison | Triggered checkpoint 7940 | -7/Garrison | Triggered checkpoint 8000 | -7/Garrison | System corruption reached 30% 8050 | -7/Garrison | Garrison Relay disabled 8112 | -7/Garrison | Build established: Botlord-Mutant 8122 | -7/Garrison | Discovered new exit (range 9) 8156 | -7/Garrison | Entered Factory 8156 | -6/Factory | Accompanied by 7 allies 8156 | -6/Factory | Evolved 2 slots: Utility x2 8216 | -6/Factory | Identified exit to Garrison 8216 | -6/Factory | Entered Garrison 8216 | -6/Garrison | Accompanied by 7 allies 8222 | -6/Garrison | Rescued a captive Derelict 8230 | -6/Garrison | Rescued a captive Derelict 8320 | -6/Garrison | Triggered checkpoint 8346 | -6/Garrison | Learned Factory security intel 8364 | -6/Garrison | Garrison Relay disabled 8460 | -6/Garrison | Triggered checkpoint 8524 | -6/Garrison | Discovered new exit (range 12) 8559 | -6/Garrison | Found embedded Infiltrators 8572 | -6/Garrison | Triggered checkpoint 8640 | -6/Garrison | Garrison Relay disabled 8728 | -6/Garrison | Triggered checkpoint 8786 | -6/Garrison | Triggered checkpoint 8805 | -6/Garrison | Lost 3 allies 8812 | -6/Garrison | Triggered checkpoint 8847 | -6/Garrison | Garrison Relay disabled 8911 | -6/Garrison | P-70 Sage assimilated allied MB-JX2(x) 8987 | -6/Garrison | Lost 3 parts (1u2w) 9042 | -6/Garrison | Discovered new exit (range 10) 9209 | -6/Garrison | Lost 3 allies 9266 | -6/Garrison | Triggered checkpoint 9322 | -6/Garrison | Expanded RIF knowledge: Code Merge 9339 | -6/Garrison | Garrison Relay disabled 9410 | -6/Garrison | Discovered new exit (range 8) 9421 | -6/Garrison | Entered Factory 9421 | -5/Factory | Evolved 2 slots: Propulsion x1, Utility x1 9750 | -5/Factory | Identified exit to Garrison 9750 | -5/Factory | Entered Garrison 9838 | -5/Garrison | Triggered checkpoint 9910 | -5/Garrison | Garrison Relay disabled 10002 | -5/Garrison | Triggered checkpoint 10073 | -5/Garrison | Triggered checkpoint 10105 | -5/Garrison | Lost 10 parts (3p1n3u3w) 10337 | -5/Garrison | Discovered new exit (range 13) 10352 | -5/Garrison | Spotted Striker 10356 | -5/Garrison | Destroyed Striker 10407 | -5/Garrison | Lost 4 parts (2n1u1w) 10418 | -5/Garrison | Triggered checkpoint 10435 | -5/Garrison | Garrison Relay disabled 10850 | -5/Garrison | Triggered checkpoint 10892 | -5/Garrison | Triggered checkpoint 10917 | -5/Garrison | Spotted B-90 Cyclops 10943 | -5/Garrison | Rewired B-75 Beast 10975 | -5/Garrison | Assimilated Cyclops 6a with formatsys_high 11059 | -5/Garrison | Discovered new exit (range 10) 11098 | -5/Garrison | Triggered checkpoint 11138 | -5/Garrison | Rescued a captive Derelict 11161 | -5/Garrison | Garrison Relay disabled 11350 | -5/Garrison | Triggered checkpoint 11352 | -5/Garrison | Discovered new exit (range 13) 11362 | -5/Garrison | Expanded RIF knowledge: Signal Jamming 11389 | -5/Garrison | Discovered new exit (range 5) 11531 | -5/Garrison | Entered Factory 11531 | -5/Factory | Accompanied by 4 allies 11550 | -5/Factory | P-70 Sage assimilated allied Virus 6a 11644 | -5/Factory | Spotted B-75 Beast 11682 | -5/Factory | Destroyed B-75 Beast 11704 | -5/Factory | Lost 4 allies 11761 | -5/Factory | Discovered new exit (range 4) 11798 | -5/Factory | Central database locked down 12126 | -5/Factory | Discovered new exit (range 10) 12384 | -5/Factory | Identified exit to Garrison 12384 | -5/Factory | Entered Garrison 12532 | -5/Garrison | Triggered checkpoint 12546 | -5/Garrison | Garrison Relay disabled 12784 | -5/Garrison | Spotted B-75 Beast 12810 | -5/Garrison | Destroyed B-75 Beast 12822 | -5/Garrison | Triggered checkpoint 12828 | -5/Garrison | Triggered checkpoint 12838 | -5/Garrison | Triggered checkpoint 12923 | -5/Garrison | Discovered new exit (range 14) 12926 | -5/Garrison | Triggered checkpoint 12972 | -5/Garrison | Discovered new exit (range 5) 13042 | -5/Garrison | Triggered checkpoint 13048 | -5/Garrison | Garrison Relay disabled 13260 | -5/Garrison | Spotted B-86 Titan 13262 | -5/Garrison | Discovered new exit (range 10) 13303 | -5/Garrison | Allies destroyed B-86 Titan 13317 | -5/Garrison | Found Hvy. Reflective Plating 13422 | -5/Garrison | Triggered checkpoint 13462 | -5/Garrison | Garrison Relay disabled 13937 | -5/Garrison | Discovered new exit (range 11) 13988 | -5/Garrison | Expanded RIF knowledge: Coupler Efficiency 14167 | -5/Garrison | Entered Factory 14167 | -5/Factory | Accompanied by 5 allies 14619 | -5/Factory | P-80 Master assimilated allied Informer 6b 14645 | -5/Factory | System corruption reached 10% 14666 | -5/Factory | Lost 5 allies 14829 | -5/Factory | Identified exit to Upper Caves 15162 | -5/Factory | Repaired Imp. Heavy Treads 15188 | -5/Factory | Discovered new exit (range 14) 15254 | -5/Factory | Identified exit to Garrison 15254 | -5/Factory | Entered Garrison 15264 | -5/Garrison | Spotted B-90 Cyclops 15271 | -5/Garrison | Spotted B-75 Beast 15341 | -5/Garrison | Core integrity fell below 50% 15414 | -5/Garrison | Triggered checkpoint 15451 | -5/Garrison | Garrison Relay disabled 15514 | -5/Garrison | Spotted B-75 Beast 15566 | -5/Garrison | Destroyed B-75 Beast 15726 | -5/Garrison | Triggered checkpoint 15798 | -5/Garrison | Triggered checkpoint 15838 | -5/Garrison | Garrison Relay disabled 15948 | -5/Garrison | Discovered new exit (range 10) 15967 | -5/Garrison | Lost 3 allies 15984 | -5/Garrison | Triggered checkpoint 16002 | -5/Garrison | Triggered checkpoint 16010 | -5/Garrison | Garrison Relay disabled 16134 | -5/Garrison | Triggered checkpoint 16158 | -5/Garrison | Triggered checkpoint 16202 | -5/Garrison | Triggered checkpoint 16230 | -5/Garrison | Triggered checkpoint 16292 | -5/Garrison | Expanded RIF knowledge: Structural Interface 16312 | -5/Garrison | Garrison Relay disabled 16462 | -5/Garrison | Discovered new exit (range 12) 16553 | -5/Garrison | Garrison Relay disabled 16676 | -5/Garrison | Discovered new exit (range 23) 16733 | -5/Garrison | Entered Factory 16733 | -4/Factory | Accompanied by 6 allies 16733 | -4/Factory | Evolved 2 slots: Propulsion x1, Utility x1 16983 | -4/Factory | First assault squad dispatched 17228 | -4/Factory | P-70 Sage assimilated allied Veteran 6b 17268 | -4/Factory | Lost 5 allies 17409 | -4/Factory | Lost 5 allies 17574 | -4/Factory | Lost 3 allies 17649 | -4/Factory | Lost 6 parts (1n4u1w) 17654 | -4/Factory | Discovered new exit (range 39) 17733 | -4/Factory | Assimilated Heavy ARC 7a with formatsys_deep 17975 | -4/Factory | Identified exit to Garrison 17975 | -4/Factory | Entered Garrison 18006 | -4/Garrison | Lost 7 parts (2p2n2u1w) 18113 | -4/Garrison | Triggered checkpoint 18179 | -4/Garrison | System corruption reached 10% 18219 | -4/Garrison | Garrison Relay disabled 18300 | -4/Garrison | Spotted B-86 Titan 18301 | -4/Garrison | Triggered checkpoint 18314 | -4/Garrison | Triggered checkpoint 18316 | -4/Garrison | Triggered checkpoint 18330 | -4/Garrison | Core integrity fell below 50% 18342 | -4/Garrison | Discovered new exit (range 10) 18344 | -4/Garrison | Core integrity fell below 20% 18346 | -4/Garrison | Phase Generator disabled 18348 | -4/Garrison | Lost 3 allies 18348 | -4/Garrison | Entered Factory 18361 | -4/Factory | Lost 14 parts (2p4n7u1w) 18416 | -4/Factory | Discovered new exit (range 11) 18420 | -4/Factory | Entered Upper Caves 18508 | -4/Upper Caves | Encountered a Warlord checkpoint 18508 | -4/Upper Caves | Learned location of 1 exit from Research 18578 | -4/Upper Caves | Learned Research security intel 18582 | -4/Upper Caves | Discovered new exit (range 11) 18583 | -4/Upper Caves | Attracted the attention of an 0b10 checkpoint 18588 | -4/Upper Caves | Entered another Upper Caves area 18592 | -4/Upper Caves | Attracted the attention of an 0b10 checkpoint 18636 | -4/Upper Caves | Lost 3 parts (3u) 18678 | -4/Upper Caves | Destroyed by G-67 Veteran with Field Laser Last Messages --------------- LOCATION=UNKNOWN GOAL=ESCAPE 18592_ Y-64 Sentinel: "INTERCEPTING UNREGISTERED DERELICT." 18605_ Adv. Power Amplifier destroyed. 18607_ System corrupted: Energy discharge (-26). 18621_ Connecting with WAR.Sys... 18621_ Current location identified: Upper Caves >>Open Door Sealed Heavy Doors opened. 18626_ MZ%PZ6PJFE&XL|EJIK IG1 W 18659_ System corrupted: Substantial component data lost. 18675_ System corrupted: Field Propulsion Array rejected. 18675_ Acquired Field Propulsion Array. 18677_ L-61 Swordsman springs to life. 18677_ G-67 Veteran springs to life. 18677_ B-60 Warrior springs to life. 18677_ S-27 Virus springs to life. 18678_ G-67 Veteran springs to life. Map ----- +----------------------------------------------------+ | ?????????????????????????????????????????????????? | | ?????????????????????????????????????????????????? | | ?????????????????????????????????????????????????? | | ?????????????????????????????????????????????????? | | ?????????????????????????????????????????????????? | | ?????????????????????????????????????????????????? | | ??????????????????????????????????????????#######? | | ??????????????????????????????????????????#!! ||#? | | ??????????????????????????????????????????#!! ||#? | | ??????????????????????????????????????????#!! =#? | | ??????????????????????????????????????????##! ##? | | ?????????????????????????#?????????????????# ### | | ???????????????????????##g????#########???## # # | | ??????????????????????? g???## #???# #X# | | ???????????????????????g ???# ##### #### | | ???????????????????????# ???# | | ???????????????????????# ???# # | | ???????????????????????# #??## ## ## | | ???????????????????????# #???# ## ### ### | | ???????????????????????# #??### ## #### ###?# | | ???????????????????????# ##?# #?# ##### | | ???????????????????????# #?# ####### #?# | | ??????????? ?????### #?# #""""# ### ##### | | ?????????? #### ### # "# #???# | | ?????????? ## lbg b# #####???? | | ?????????? @ l gg# #???????? | | ?????????? ## # ???# ##???????? | | ????????????????????### #"???# #????????? | | ??????????????????????## ## ####### #????????? | | ???????????????????????##?# #????????? | | ??????????????????????????## #######????????? | | ???????????????????????????## ####??????????????? | | ????????????????????????????# #?????????????????? | | ????????????????????????????## #?????????????????? | | ?????????????????????????????###?????????????????? | | ?????????????????????????????????????????????????? | | ?????????????????????????????????????????????????? | | ?????????????????????????????????????????????????? | | ?????????????????????????????????????????????????? | | ?????????????????????????????????????????????????? | | ?????????????????????????????????????????????????? | | ?????????????????????????????????????????????????? | | ?????????????????????????????????????????????????? | | ?????????????????????????????????????????????????? | | ?????????????????????????????????????????????????? | | ?????????????????????????????????????????????????? | | ?????????????????????????????????????????????????? | | ?????????????????????????????????????????????????? | | ?????????????????????????????????????????????????? | | ?????????????????????????????????????????????????? | +----------------------------------------------------+ Best States ------------- Heat Dissipation 97 Energy Generation 37 Energy Capacity 570 Matter Stores 300 Matter Capacity 300 Sight Range 16 Terrain Scan Range 16 Terrain Scan Density 10 Jamming Range 16 Power Amplification 30 Additional Mass Support 12 Armor Coverage 1500 Resistance: TH 25 Core Shielding 30 Power Shielding 66 Propulsion Shielding 66 Weapon Shielding 15 Evasion (%) 62 Targeting Accuracy 8 Core Analysis 6 Recoil Reduction 6 Offensive Hacking 10 Relay Coupler Types 5 Relay Coupler Value 253 Item Schematics ----------------- Arm. Heavy Treads | -5/Factory | Scanalyzed Robot Schematics ------------------ None Fabricated ------------ Nothing Repaired ---------- Imp. Shield Generator | 27% | -8/Materials Arm. Treads | 8% | -8/Materials Imp. Deuterium Engine | 21% | -8/Materials Imp. Heavy Treads | 9% | -5/Factory Studied --------- Tesla Rifle | -5/Factory | Hacked Alien Tech Used ----------------- None Achievements -------------- Analysis Probe Botjacking Bumper Bots Deep Understanding Hack The Planet Hackerman Item+ Join The Dark Side Let Me Out Of Here Mindtrick My Business Is Booming That Tickles Versatile You Will Be Upgraded Zeroed Repercussions Challenges ------------ None Game ------ Seed ChainGuidanceCartridge Manual? 0 Play Time 02:56:25 Cumulative 454.5 hours Start 2026.01.09 @ 00:50:32 End 2026.01.09 @ 23:15:30 Sessions 13 Manual Loads 0 Difficulty Rogue Special Mode None Game No. 462 Rogue 462 Adventurer 0 Explorer 0 Win Type - Total 31 Types 16/3/6/1/2/0/3/0/0/0 Lore% 89 Gallery% 81 Achievement% 52 Wizard Run 0 Options --------- Layout 0 ASCII 0 Keyboard 0 Movement Arrows Keybinds 0 Fullscreen 2 Font 24/Smallcaps Map View 76x50 Zoom Use 0% Tactical HUD 1 Map Filters NONE Filters NONE Steam 1 RUN: 9ff7d482-8615-4e5a-bde2-8dd69ecde1f8